[Event "Early-Titled-Tuesday-Blitz-May-28-2024"]
[Site "Chess.com"]
[Date "2024.05.28"]
[Round "7"]
[White "Dolphin_2010"]
[Black "Squirlolz"]
[Result "1-0"]
[WhiteElo "2765"]
[BlackElo "2543"]
[TimeControl "180+1"]
[EndTime "9:15:54 PDT"]
[Termination "Dolphin_2010 won by resignation"]

1. d4 {[%clk 0:03:00.9]} 1... c5 {[%clk 0:02:59.3]} 2. c3 {[%clk 0:03:00.6]}
2... cxd4 {[%clk 0:02:56.8]} 3. cxd4 {[%clk 0:03:01.4]} 3... b5 {[%clk
0:02:57.2]} 4. e4 {[%clk 0:02:59.9]} 4... Bb7 {[%clk 0:02:57.3]} 5. f3 {[%clk
0:02:53.8]} 5... a6 {[%clk 0:02:57.1]} 6. Be3 {[%clk 0:02:53.6]} 6... g6 {[%clk
0:02:57]} 7. h4 {[%clk 0:02:52.9]} 7... Nf6 {[%clk 0:02:56.3]} 8. Bd3 {[%clk
0:02:50.1]} 8... Bg7 {[%clk 0:02:56.2]} 9. Ne2 {[%clk 0:02:44.8]} 9... Nc6
{[%clk 0:02:55.5]} 10. Nbc3 {[%clk 0:02:41.4]} 10... d6 {[%clk 0:02:54.8]} 11.
Rc1 {[%clk 0:02:40.3]} 11... O-O {[%clk 0:02:53.4]} 12. Kf2 {[%clk 0:02:31.7]}
12... Rc8 {[%clk 0:02:52.4]} 13. Qd2 {[%clk 0:02:25.6]} 13... Na5 {[%clk
0:02:52.3]} 14. b3 {[%clk 0:02:25.8]} 14... Nc6 {[%clk 0:02:40.9]} 15. Bh6
{[%clk 0:02:21.7]} 15... b4 {[%clk 0:02:39.7]} 16. Nd5 {[%clk 0:02:06.7]} 16...
Nxd5 {[%clk 0:02:36.6]} 17. exd5 {[%clk 0:02:04.4]} 17... Nxd4 {[%clk
0:02:23.3]} 18. Rxc8 {[%clk 0:01:44.5]} 18... Qxc8 {[%clk 0:02:24.2]} 19. Bxg7
{[%clk 0:01:45.1]} 19... Kxg7 {[%clk 0:02:03.2]} 20. Nxd4 {[%clk 0:01:41.5]}
20... Bxd5 {[%clk 0:01:58]} 21. h5 {[%clk 0:01:37.3]} 21... Qc5 {[%clk
0:01:56.6]} 22. Qe3 {[%clk 0:01:31.9]} 22... a5 {[%clk 0:01:35.2]} 23. Rc1
{[%clk 0:01:26.6]} 23... Qc3 {[%clk 0:01:08]} 24. Rxc3 {[%clk 0:01:24.7]} 24...
bxc3 {[%clk 0:01:08.9]} 25. Nf5+ {[%clk 0:01:18.7]} 25... gxf5 {[%clk
0:01:08.1]} 26. Qg5+ {[%clk 0:01:17.2]} 26... Kh8 {[%clk 0:01:08.3]} 27. Qxf5
{[%clk 0:01:10.1]} 1-0

[Event "Early-Titled-Tuesday-Blitz-May-28-2024"]
[Site "Chess.com"]
[Date "2024.05.28"]
[Round "7"]
[White "JAN2404"]
[Black "GMthekingindian"]
[Result "0-1"]
[WhiteElo "1969"]
[BlackElo "2351"]
[TimeControl "180+1"]
[EndTime "9:16:03 PDT"]
[Termination "GMthekingindian won by resignation"]

1. e4 {[%clk 0:03:00.9]} 1... c5 {[%clk 0:02:59.9]} 2. d4 {[%clk 0:03:00.4]}
2... cxd4 {[%clk 0:03:00.1]} 3. c3 {[%clk 0:03:00.5]} 3... Nf6 {[%clk
0:03:00.1]} 4. e5 {[%clk 0:02:59.4]} 4... Nd5 {[%clk 0:03:00.2]} 5. Nf3 {[%clk
0:02:58.9]} 5... e6 {[%clk 0:03:00.3]} 6. cxd4 {[%clk 0:02:58]} 6... d6 {[%clk
0:03:00.5]} 7. Bc4 {[%clk 0:02:41.1]} 7... Be7 {[%clk 0:02:58.2]} 8. O-O {[%clk
0:02:32.8]} 8... O-O {[%clk 0:02:58.3]} 9. Nc3 {[%clk 0:02:24.6]} 9... Nxc3
{[%clk 0:02:56.7]} 10. bxc3 {[%clk 0:02:23.7]} 10... Qc7 {[%clk 0:02:57.3]} 11.
Qb3 {[%clk 0:02:21.2]} 11... Nc6 {[%clk 0:02:55.7]} 12. Bd3 {[%clk 0:02:19.7]}
12... dxe5 {[%clk 0:02:54.3]} 13. Qc2 {[%clk 0:01:41.3]} 13... h6 {[%clk
0:02:50.3]} 14. Re1 {[%clk 0:01:28.6]} 14... exd4 {[%clk 0:02:44.8]} 15. cxd4
{[%clk 0:01:28]} 15... Bd7 {[%clk 0:02:44.8]} 16. Bb2 {[%clk 0:01:15]} 16...
Rac8 {[%clk 0:02:42.7]} 17. Qe2 {[%clk 0:01:12.5]} 17... Nb4 {[%clk 0:02:37.5]}
18. Rac1 {[%clk 0:01:09.4]} 18... Qa5 {[%clk 0:02:29.6]} 19. a3 {[%clk
0:01:00.6]} 19... Nxd3 {[%clk 0:02:29.3]} 20. Qxd3 {[%clk 0:01:00.8]} 20... Bf6
{[%clk 0:02:25.1]} 21. Ne5 {[%clk 0:00:42.6]} 21... Bb5 {[%clk 0:02:25]} 22. Qf3
{[%clk 0:00:30.9]} 22... Rxc1 {[%clk 0:02:22]} 23. Rxc1 {[%clk 0:00:30]} 23...
Qd2 {[%clk 0:02:22.5]} 24. Qb3 {[%clk 0:00:24]} 24... Bxe5 {[%clk 0:02:19.2]}
25. dxe5 {[%clk 0:00:22.2]} 25... Bc6 {[%clk 0:02:17.6]} 26. Rd1 {[%clk
0:00:16.2]} 26... Qg5 {[%clk 0:02:13.6]} 27. g3 {[%clk 0:00:15.4]} 27... Qg4
{[%clk 0:02:11.4]} 28. Rd2 {[%clk 0:00:12.9]} 28... Qe4 {[%clk 0:02:10.1]} 29.
f3 {[%clk 0:00:05.7]} 29... Qe1+ {[%clk 0:02:08]} 0-1

[Event "Early-Titled-Tuesday-Blitz-May-28-2024"]
[Site "Chess.com"]
[Date "2024.05.28"]
[Round "7"]
[White "janhelmer03"]
[Black "SuperGPatzer"]
[Result "1-0"]
[WhiteElo "2395"]
[BlackElo "2072"]
[TimeControl "180+1"]
[EndTime "9:16:12 PDT"]
[Termination "janhelmer03 won by resignation"]

1. Nf3 {[%clk 0:03:00.9]} 1... c5 {[%clk 0:02:55.7]} 2. b3 {[%clk 0:03:00.2]}
2... Nc6 {[%clk 0:02:45.7]} 3. Bb2 {[%clk 0:03:00.4]} 3... d5 {[%clk 0:02:42.1]}
4. e3 {[%clk 0:03:00.6]} 4... Nf6 {[%clk 0:02:41.7]} 5. Bb5 {[%clk 0:03:01]}
5... Bd7 {[%clk 0:02:38.4]} 6. O-O {[%clk 0:03:00]} 6... e6 {[%clk 0:02:37]} 7.
Bxc6 {[%clk 0:02:59.1]} 7... Bxc6 {[%clk 0:02:36.8]} 8. Ne5 {[%clk 0:03:00]}
8... Qc7 {[%clk 0:02:33.9]} 9. d3 {[%clk 0:02:58.1]} 9... Be7 {[%clk 0:02:30.9]}
10. Nd2 {[%clk 0:02:57.6]} 10... O-O {[%clk 0:02:24.4]} 11. Nxc6 {[%clk
0:02:57.5]} 11... Qxc6 {[%clk 0:02:24.1]} 12. Qe2 {[%clk 0:02:53]} 12... Rad8
{[%clk 0:02:19.8]} 13. e4 {[%clk 0:02:50]} 13... d4 {[%clk 0:02:07.2]} 14. a4
{[%clk 0:02:48.4]} 14... e5 {[%clk 0:02:05.1]} 15. Nc4 {[%clk 0:02:45.8]} 15...
Bd6 {[%clk 0:02:03]} 16. g3 {[%clk 0:02:22.2]} 16... Qc8 {[%clk 0:01:52.6]} 17.
f4 {[%clk 0:02:20.7]} 17... Qg4 {[%clk 0:01:48.9]} 18. Qxg4 {[%clk 0:02:17.3]}
18... Nxg4 {[%clk 0:01:48]} 19. h3 {[%clk 0:02:16.3]} 19... Nf6 {[%clk
0:01:39.2]} 20. fxe5 {[%clk 0:02:15.5]} 20... Be7 {[%clk 0:01:17.1]} 21. exf6
{[%clk 0:02:06.9]} 21... Bxf6 {[%clk 0:01:18]} 22. Rf5 {[%clk 0:02:04.4]} 22...
b6 {[%clk 0:01:17.2]} 23. Raf1 {[%clk 0:02:03.8]} 23... Rfe8 {[%clk 0:01:15.9]}
24. e5 {[%clk 0:02:02.3]} 24... Be7 {[%clk 0:01:05.3]} 25. Rxf7 {[%clk
0:02:02.1]} 25... Bg5 {[%clk 0:01:01]} 26. h4 {[%clk 0:02:00]} 26... Bh6 {[%clk
0:00:54.5]} 27. g4 {[%clk 0:01:58.2]} 27... g6 {[%clk 0:00:44.9]} 28. Rxa7
{[%clk 0:01:57.7]} 28... Rf8 {[%clk 0:00:43.8]} 29. Rf6 {[%clk 0:01:52.4]} 29...
Rde8 {[%clk 0:00:36.5]} 30. g5 {[%clk 0:01:49.8]} 30... Bg7 {[%clk 0:00:36.1]}
31. Kg2 {[%clk 0:01:43.4]} 31... Bxf6 {[%clk 0:00:35.4]} 32. gxf6 {[%clk
0:01:43.5]} 32... Rf7 {[%clk 0:00:32.1]} 33. Rxf7 {[%clk 0:01:43]} 33... Kxf7
{[%clk 0:00:31.8]} 34. Nd6+ {[%clk 0:01:43.9]} 34... Ke6 {[%clk 0:00:31.6]} 35.
Nxe8 {[%clk 0:01:44.8]} 1-0

[Event "Early-Titled-Tuesday-Blitz-May-28-2024"]
[Site "Chess.com"]
[Date "2024.05.28"]
[Round "7"]
[White "Smiechu"]
[Black "Barmen_EV"]
[Result "1-0"]
[WhiteElo "2450"]
[BlackElo "2551"]
[TimeControl "180+1"]
[EndTime "9:16:13 PDT"]
[Termination "Smiechu won by checkmate"]

1. e4 {[%clk 0:03:00.9]} 1... e6 {[%clk 0:02:58]} 2. d4 {[%clk 0:03:00.4]} 2...
d5 {[%clk 0:02:57.8]} 3. Bd3 {[%clk 0:03:00.3]} 3... dxe4 {[%clk 0:02:50.6]} 4.
Bxe4 {[%clk 0:02:59.8]} 4... Nf6 {[%clk 0:02:51.3]} 5. Bf3 {[%clk 0:02:59.3]}
5... Bd6 {[%clk 0:02:51.6]} 6. Ne2 {[%clk 0:02:59.1]} 6... Nbd7 {[%clk
0:02:49.6]} 7. O-O {[%clk 0:02:58.7]} 7... O-O {[%clk 0:02:49.2]} 8. c4 {[%clk
0:02:39.8]} 8... c6 {[%clk 0:02:38.5]} 9. Nbc3 {[%clk 0:02:39.5]} 9... e5 {[%clk
0:02:38.8]} 10. Ng3 {[%clk 0:02:29.2]} 10... Bc7 {[%clk 0:02:26.9]} 11. d5
{[%clk 0:02:26.8]} 11... cxd5 {[%clk 0:02:25.1]} 12. cxd5 {[%clk 0:02:26.6]}
12... Nc5 {[%clk 0:02:25]} 13. b4 {[%clk 0:02:15.5]} 13... Na6 {[%clk
0:02:14.7]} 14. a3 {[%clk 0:02:08.4]} 14... b6 {[%clk 0:02:10.6]} 15. d6 {[%clk
0:02:00.4]} 15... Rb8 {[%clk 0:01:55.3]} 16. dxc7 {[%clk 0:01:58.8]} 16... Qxc7
{[%clk 0:01:56]} 17. Nce4 {[%clk 0:01:55.2]} 17... Nxe4 {[%clk 0:01:55]} 18.
Nxe4 {[%clk 0:01:55.2]} 18... Bf5 {[%clk 0:01:54.8]} 19. Bb2 {[%clk 0:01:52]}
19... Rfd8 {[%clk 0:01:53.7]} 20. Qb3 {[%clk 0:01:49.5]} 20... Be6 {[%clk
0:01:53.5]} 21. Qc3 {[%clk 0:01:45.9]} 21... Qxc3 {[%clk 0:01:44.4]} 22. Bxc3
{[%clk 0:01:46.8]} 22... Rbc8 {[%clk 0:01:44.3]} 23. Bxe5 {[%clk 0:01:37.5]}
23... f6 {[%clk 0:01:44.8]} 24. Bf4 {[%clk 0:01:31.5]} 24... Rd3 {[%clk
0:01:45.4]} 25. Rfd1 {[%clk 0:01:29.8]} 25... Rb3 {[%clk 0:01:42.2]} 26. Re1
{[%clk 0:01:17.9]} 26... g5 {[%clk 0:01:37.4]} 27. Nd6 {[%clk 0:01:13.8]} 27...
Rcc3 {[%clk 0:01:24.6]} 28. Rxe6 {[%clk 0:01:10.1]} 28... gxf4 {[%clk
0:01:24.2]} 29. Bd5 {[%clk 0:01:06.4]} 29... Rxa3 {[%clk 0:01:21.3]} 30. Rae1
{[%clk 0:00:55.5]} 30... Nxb4 {[%clk 0:01:21.1]} 31. Re8+ {[%clk 0:00:54.5]}
31... Kg7 {[%clk 0:01:21.3]} 32. Rg8+ {[%clk 0:00:52.3]} 32... Kh6 {[%clk
0:01:20.7]} 33. Nf5+ {[%clk 0:00:50.4]} 33... Kh5 {[%clk 0:01:20.3]} 34. Bf7#
{[%clk 0:00:50.5]} 1-0

[Event "Early-Titled-Tuesday-Blitz-May-28-2024"]
[Site "Chess.com"]
[Date "2024.05.28"]
[Round "7"]
[White "Flaccidmoves"]
[Black "Keithonsky"]
[Result "0-1"]
[WhiteElo "2492"]
[BlackElo "2645"]
[TimeControl "180+1"]
[EndTime "9:16:16 PDT"]
[Termination "Keithonsky won by resignation"]

1. Nf3 {[%clk 0:03:00.9]} 1... c5 {[%clk 0:02:59.6]} 2. b3 {[%clk 0:02:59.2]}
2... Nc6 {[%clk 0:02:59.4]} 3. Bb2 {[%clk 0:02:59.8]} 3... d5 {[%clk 0:02:59.4]}
4. e3 {[%clk 0:03:00.1]} 4... a6 {[%clk 0:02:59.8]} 5. d4 {[%clk 0:02:59.7]}
5... cxd4 {[%clk 0:03:00.2]} 6. Nxd4 {[%clk 0:02:59.5]} 6... Nf6 {[%clk
0:03:00]} 7. Be2 {[%clk 0:02:57.4]} 7... e6 {[%clk 0:02:56.7]} 8. O-O {[%clk
0:02:57.1]} 8... Bc5 {[%clk 0:02:56.4]} 9. Nxc6 {[%clk 0:02:52.6]} 9... bxc6
{[%clk 0:02:56.3]} 10. c4 {[%clk 0:02:53.3]} 10... O-O {[%clk 0:02:56.5]} 11.
Nc3 {[%clk 0:02:51]} 11... a5 {[%clk 0:02:54.4]} 12. Rc1 {[%clk 0:02:48.4]}
12... Bd6 {[%clk 0:02:54.6]} 13. Qc2 {[%clk 0:02:38.5]} 13... Bd7 {[%clk
0:02:53.8]} 14. Rfd1 {[%clk 0:02:38]} 14... Qb8 {[%clk 0:02:54.4]} 15. f4 {[%clk
0:02:33.9]} 15... Qa7 {[%clk 0:02:52.7]} 16. Kh1 {[%clk 0:02:17.2]} 16... Qxe3
{[%clk 0:02:51.8]} 17. f5 {[%clk 0:02:13.2]} 17... Qh6 {[%clk 0:02:50.1]} 18. g3
{[%clk 0:02:08.6]} 18... Bxg3 {[%clk 0:02:46.6]} 19. Bf3 {[%clk 0:02:08.4]}
19... Bf4 {[%clk 0:02:45.6]} 20. Rg1 {[%clk 0:01:58.1]} 20... d4 {[%clk
0:02:38.8]} 21. Ne4 {[%clk 0:01:51.7]} 21... Nxe4 {[%clk 0:02:37.1]} 22. Bxe4
{[%clk 0:01:52.6]} 22... e5 {[%clk 0:02:36.1]} 23. Rcf1 {[%clk 0:01:41]} 23...
Ra6 {[%clk 0:02:35.3]} 24. Rf3 {[%clk 0:01:29.2]} 24... Qf6 {[%clk 0:02:18.9]}
25. Bxd4 {[%clk 0:01:20.7]} 25... exd4 {[%clk 0:02:13.5]} 26. Rxf4 {[%clk
0:01:21]} 26... c5 {[%clk 0:02:12.8]} 27. Rfg4 {[%clk 0:01:20.4]} 27... g6
{[%clk 0:02:10.1]} 28. fxg6 {[%clk 0:01:17.9]} 28... fxg6 {[%clk 0:02:06.1]} 29.
Bxg6 {[%clk 0:01:17.1]} 29... Qf3+ {[%clk 0:01:57]} 30. R1g2 {[%clk 0:01:04.9]}
30... Qf1+ {[%clk 0:01:56.5]} 31. Rg1 {[%clk 0:01:05.3]} 31... Qf3+ {[%clk
0:01:57.4]} 32. R1g2 {[%clk 0:01:05.7]} 32... Bxg4 {[%clk 0:01:57.3]} 33. Be4
{[%clk 0:00:58]} 33... Rg6 {[%clk 0:01:37.2]} 0-1

[Event "Early-Titled-Tuesday-Blitz-May-28-2024"]
[Site "Chess.com"]
[Date "2024.05.28"]
[Round "7"]
[White "manitodeplomo"]
[Black "Rdeux42"]
[Result "1-0"]
[WhiteElo "2565"]
[BlackElo "2424"]
[TimeControl "180+1"]
[EndTime "9:16:17 PDT"]
[Termination "manitodeplomo won by resignation"]

1. d4 {[%clk 0:02:52.3]} 1... d5 {[%clk 0:02:58.9]} 2. c4 {[%clk 0:02:50.8]}
2... e6 {[%clk 0:02:59.3]} 3. Nf3 {[%clk 0:02:50.1]} 3... c6 {[%clk 0:02:58.8]}
4. Bg5 {[%clk 0:02:44.4]} 4... Be7 {[%clk 0:02:58.4]} 5. Bxe7 {[%clk 0:02:44]}
5... Qxe7 {[%clk 0:02:59.3]} 6. e3 {[%clk 0:02:43.6]} 6... Nf6 {[%clk
0:02:59.9]} 7. Nc3 {[%clk 0:02:43.2]} 7... O-O {[%clk 0:03:00.3]} 8. Qc2 {[%clk
0:02:27.2]} 8... dxc4 {[%clk 0:02:55]} 9. Bxc4 {[%clk 0:02:25.9]} 9... c5 {[%clk
0:02:55.6]} 10. O-O {[%clk 0:02:21.2]} 10... Nc6 {[%clk 0:02:51.9]} 11. a3
{[%clk 0:02:10.6]} 11... cxd4 {[%clk 0:02:50.7]} 12. exd4 {[%clk 0:02:08.4]}
12... Rd8 {[%clk 0:02:40.7]} 13. Rad1 {[%clk 0:02:06.2]} 13... b6 {[%clk
0:02:39.8]} 14. Rfe1 {[%clk 0:02:00.8]} 14... Qf8 {[%clk 0:02:17.2]} 15. d5
{[%clk 0:01:57.8]} 15... exd5 {[%clk 0:02:16.4]} 16. Nxd5 {[%clk 0:01:57.4]}
16... Nxd5 {[%clk 0:02:07.6]} 17. Bxd5 {[%clk 0:01:58.3]} 17... Bb7 {[%clk
0:02:05.5]} 18. Bxc6 {[%clk 0:01:54.5]} 18... Rxd1 {[%clk 0:02:02.3]} 19. Rxd1
{[%clk 0:01:53.2]} 19... Rc8 {[%clk 0:02:02]} 20. Nd4 {[%clk 0:01:05]} 20... Qd6
{[%clk 0:01:47.3]} 21. Nf5 {[%clk 0:00:50]} 21... Qf6 {[%clk 0:01:47.1]} 22. Rd6
{[%clk 0:00:43.2]} 22... Rxc6 {[%clk 0:01:37.7]} 23. Rxc6 {[%clk 0:00:37.9]}
23... Bxc6 {[%clk 0:01:31.9]} 24. Qxc6 {[%clk 0:00:36]} 24... Qd8 {[%clk
0:01:16.5]} 25. Qc8 {[%clk 0:00:33.2]} 25... Qxc8 {[%clk 0:01:14.9]} 26. Ne7+
{[%clk 0:00:33]} 1-0

[Event "Early-Titled-Tuesday-Blitz-May-28-2024"]
[Site "Chess.com"]
[Date "2024.05.28"]
[Round "7"]
[White "chessamical"]
[Black "Nekoo04"]
[Result "0-1"]
[WhiteElo "2282"]
[BlackElo "2426"]
[TimeControl "180+1"]
[EndTime "9:16:29 PDT"]
[Termination "Nekoo04 won by resignation"]

1. Nf3 {[%clk 0:03:00.9]} 1... d5 {[%clk 0:02:59.2]} 2. c4 {[%clk 0:02:59.6]}
2... e6 {[%clk 0:02:57.5]} 3. e3 {[%clk 0:02:56.8]} 3... Nf6 {[%clk 0:02:57.3]}
4. b3 {[%clk 0:02:56.2]} 4... c5 {[%clk 0:02:54]} 5. cxd5 {[%clk 0:02:49.2]}
5... Nxd5 {[%clk 0:02:53.1]} 6. Bb2 {[%clk 0:02:45.4]} 6... Nc6 {[%clk
0:02:52.7]} 7. Nc3 {[%clk 0:02:36.2]} 7... Ndb4 {[%clk 0:02:47.1]} 8. d3 {[%clk
0:02:30.4]} 8... e5 {[%clk 0:02:34.6]} 9. a3 {[%clk 0:02:28.5]} 9... Nd5 {[%clk
0:02:34.6]} 10. Nxd5 {[%clk 0:02:11]} 10... Qxd5 {[%clk 0:02:35.5]} 11. Qc2
{[%clk 0:02:04.7]} 11... f6 {[%clk 0:02:06.7]} 12. Qc4 {[%clk 0:01:57.8]} 12...
Be6 {[%clk 0:02:05.9]} 13. Qxd5 {[%clk 0:01:57.1]} 13... Bxd5 {[%clk 0:02:06.8]}
14. Nd2 {[%clk 0:01:57.1]} 14... Na5 {[%clk 0:01:59.7]} 15. Bc3 {[%clk 0:01:40]}
15... Nxb3 {[%clk 0:01:55.8]} 16. Nxb3 {[%clk 0:01:31.9]} 16... Bxb3 {[%clk
0:01:55.9]} 17. d4 {[%clk 0:01:02]} 17... exd4 {[%clk 0:01:46.8]} 18. Bb5+
{[%clk 0:00:58]} 18... Kf7 {[%clk 0:01:46]} 19. exd4 {[%clk 0:00:58.2]} 19...
cxd4 {[%clk 0:01:41.7]} 20. Bxd4 {[%clk 0:00:57.8]} 20... a6 {[%clk 0:01:41.6]}
21. Be2 {[%clk 0:00:36.7]} 21... Re8 {[%clk 0:01:38.6]} 22. Rc1 {[%clk
0:00:24.6]} 22... Bxa3 {[%clk 0:01:12.8]} 0-1

[Event "Early-Titled-Tuesday-Blitz-May-28-2024"]
[Site "Chess.com"]
[Date "2024.05.28"]
[Round "7"]
[White "Tol_Tol"]
[Black "Fraler15"]
[Result "1-0"]
[WhiteElo "2384"]
[BlackElo "2199"]
[TimeControl "180+1"]
[EndTime "9:16:31 PDT"]
[Termination "Tol_Tol won by resignation"]

1. d4 {[%clk 0:02:56.6]} 1... d5 {[%clk 0:02:59]} 2. c4 {[%clk 0:02:56.8]} 2...
e6 {[%clk 0:02:58.9]} 3. Nc3 {[%clk 0:02:56.8]} 3... Nf6 {[%clk 0:02:58.5]} 4.
Bg5 {[%clk 0:02:55.4]} 4... Bb4 {[%clk 0:02:52]} 5. e3 {[%clk 0:02:55.6]} 5...
Nbd7 {[%clk 0:02:49.6]} 6. cxd5 {[%clk 0:02:54.8]} 6... exd5 {[%clk 0:02:49.3]}
7. Bd3 {[%clk 0:02:55.2]} 7... h6 {[%clk 0:02:38.4]} 8. Bh4 {[%clk 0:02:53.6]}
8... c5 {[%clk 0:02:29]} 9. Ne2 {[%clk 0:02:53.5]} 9... cxd4 {[%clk 0:02:18.8]}
10. exd4 {[%clk 0:02:45.3]} 10... O-O {[%clk 0:02:08.3]} 11. O-O {[%clk
0:02:44.9]} 11... Be7 {[%clk 0:02:02.1]} 12. Rc1 {[%clk 0:02:34.8]} 12... a6
{[%clk 0:01:59.1]} 13. Re1 {[%clk 0:02:34.6]} 13... Re8 {[%clk 0:01:58.6]} 14.
Bb1 {[%clk 0:02:33.8]} 14... Nf8 {[%clk 0:01:57.6]} 15. a3 {[%clk 0:02:24.6]}
15... Be6 {[%clk 0:01:33.2]} 16. Bg3 {[%clk 0:02:19.9]} 16... Rc8 {[%clk
0:01:21.2]} 17. Nf4 {[%clk 0:02:15.7]} 17... Bg4 {[%clk 0:00:57.8]} 18. Qd3
{[%clk 0:02:08.3]} 18... g6 {[%clk 0:00:46.2]} 19. Ba2 {[%clk 0:02:05.6]} 19...
Bf5 {[%clk 0:00:44.9]} 20. Qd2 {[%clk 0:02:03.2]} 20... Ne4 {[%clk 0:00:43.6]}
21. Nxe4 {[%clk 0:01:57.9]} 21... dxe4 {[%clk 0:00:43.1]} 22. Nd5 {[%clk
0:01:42.3]} 22... Bg5 {[%clk 0:00:40.3]} 23. Bf4 {[%clk 0:01:42.2]} 23... Ne6
{[%clk 0:00:35.8]} 24. Bxg5 {[%clk 0:01:39.4]} 24... Nxg5 {[%clk 0:00:34.9]} 25.
Rxc8 {[%clk 0:01:35.2]} 25... Qxc8 {[%clk 0:00:34.4]} 26. Nf6+ {[%clk
0:01:34.8]} 26... Kg7 {[%clk 0:00:33.6]} 27. Nxe8+ {[%clk 0:01:35.1]} 27... Qxe8
{[%clk 0:00:33.5]} 28. d5 {[%clk 0:01:31.2]} 28... Qd7 {[%clk 0:00:30.3]} 29. h4
{[%clk 0:01:29.6]} 29... Nh7 {[%clk 0:00:29.5]} 30. Qd4+ {[%clk 0:01:30]} 30...
Nf6 {[%clk 0:00:28.9]} 31. d6 {[%clk 0:01:29.3]} 1-0

[Event "Early-Titled-Tuesday-Blitz-May-28-2024"]
[Site "Chess.com"]
[Date "2024.05.28"]
[Round "7"]
[White "ChessShop"]
[Black "Preobrazhenska_D2011"]
[Result "1-0"]
[WhiteElo "2669"]
[BlackElo "2521"]
[TimeControl "180+1"]
[EndTime "9:16:33 PDT"]
[Termination "ChessShop won by resignation"]

1. d4 {[%clk 0:03:00.9]} 1... Nf6 {[%clk 0:02:54.3]} 2. Nf3 {[%clk 0:03:00.5]}
2... b6 {[%clk 0:02:49.6]} 3. Bg5 {[%clk 0:03:00.7]} 3... Bb7 {[%clk 0:02:42.8]}
4. Nbd2 {[%clk 0:03:00.5]} 4... d5 {[%clk 0:02:04.9]} 5. e3 {[%clk 0:02:58.6]}
5... h6 {[%clk 0:02:03.5]} 6. Bh4 {[%clk 0:02:56.1]} 6... e6 {[%clk 0:01:58.8]}
7. Bb5+ {[%clk 0:02:55.3]} 7... c6 {[%clk 0:01:57.3]} 8. Bd3 {[%clk 0:02:55.3]}
8... Bd6 {[%clk 0:01:53.3]} 9. Ne5 {[%clk 0:02:54.8]} 9... Nbd7 {[%clk 0:01:47]}
10. f4 {[%clk 0:02:54.5]} 10... g5 {[%clk 0:01:08.6]} 11. Bg3 {[%clk 0:02:41.7]}
11... Bxe5 {[%clk 0:00:45.3]} 12. fxe5 {[%clk 0:02:41]} 12... Ng8 {[%clk
0:00:44.9]} 13. O-O {[%clk 0:02:38.2]} 13... Ne7 {[%clk 0:00:43.3]} 14. Qh5
{[%clk 0:02:35.9]} 14... Rf8 {[%clk 0:00:30.2]} 15. Qxh6 {[%clk 0:02:27.4]}
15... Qc7 {[%clk 0:00:30]} 16. Qxg5 {[%clk 0:02:27.4]} 16... Rg8 {[%clk
0:00:24.5]} 17. Qh5 {[%clk 0:02:23.9]} 17... O-O-O {[%clk 0:00:20.3]} 18. Rxf7
{[%clk 0:02:20.5]} 18... Rh8 {[%clk 0:00:16.6]} 19. Qg4 {[%clk 0:02:08.8]} 19...
Nf8 {[%clk 0:00:11.7]} 20. Bh4 {[%clk 0:02:02.9]} 20... Re8 {[%clk 0:00:05.4]}
21. Raf1 {[%clk 0:01:59.2]} 21... Kb8 {[%clk 0:00:04.6]} 22. Bxe7 {[%clk
0:01:58.5]} 22... Rxe7 {[%clk 0:00:03.4]} 23. Rxf8+ {[%clk 0:01:58.4]} 23... Re8
{[%clk 0:00:04]} 24. Rxh8 {[%clk 0:01:56.7]} 24... Rxh8 {[%clk 0:00:04.6]} 25.
Qxe6 {[%clk 0:01:56.9]} 25... Qd8 {[%clk 0:00:03.3]} 26. Qf6 {[%clk 0:01:56.9]}
26... Qe8 {[%clk 0:00:03.3]} 27. Bg6 {[%clk 0:01:51.9]} 27... Qg8 {[%clk
0:00:03.3]} 28. e6 {[%clk 0:01:48.8]} 28... Ka8 {[%clk 0:00:03.8]} 29. e7 {[%clk
0:01:48.8]} 29... Qb8 {[%clk 0:00:02.3]} 30. e8=Q {[%clk 0:01:47.3]} 1-0

[Event "Early-Titled-Tuesday-Blitz-May-28-2024"]
[Site "Chess.com"]
[Date "2024.05.28"]
[Round "7"]
[White "atbenina64"]
[Black "xasid81"]
[Result "1-0"]
[WhiteElo "2786"]
[BlackElo "2586"]
[TimeControl "180+1"]
[EndTime "9:16:36 PDT"]
[Termination "atbenina64 won by checkmate"]

1. Nf3 {[%clk 0:03:00.9]} 1... d5 {[%clk 0:02:59.7]} 2. g3 {[%clk 0:03:00.8]}
2... Nf6 {[%clk 0:02:57]} 3. Bg2 {[%clk 0:03:01.2]} 3... c6 {[%clk 0:02:56.9]}
4. O-O {[%clk 0:03:01.6]} 4... h6 {[%clk 0:02:55.4]} 5. c4 {[%clk 0:03:00]} 5...
e6 {[%clk 0:02:54.3]} 6. b3 {[%clk 0:02:59.9]} 6... Nbd7 {[%clk 0:02:54.1]} 7.
Bb2 {[%clk 0:03:00.5]} 7... Bd6 {[%clk 0:02:53.6]} 8. d4 {[%clk 0:03:01.1]} 8...
O-O {[%clk 0:02:53.5]} 9. Nbd2 {[%clk 0:03:01.5]} 9... Qe7 {[%clk 0:02:53.5]}
10. Re1 {[%clk 0:03:00.2]} 10... Ba3 {[%clk 0:02:50.7]} 11. Bxa3 {[%clk
0:02:58.5]} 11... Qxa3 {[%clk 0:02:51.6]} 12. Qc2 {[%clk 0:02:56]} 12... Re8
{[%clk 0:02:45.8]} 13. e4 {[%clk 0:02:55.6]} 13... dxe4 {[%clk 0:02:45.2]} 14.
Nxe4 {[%clk 0:02:51.1]} 14... Nxe4 {[%clk 0:02:45.5]} 15. Rxe4 {[%clk
0:02:50.4]} 15... Qd6 {[%clk 0:02:43.7]} 16. Rae1 {[%clk 0:02:43.7]} 16... b6
{[%clk 0:02:41.9]} 17. Ne5 {[%clk 0:02:42.5]} 17... Bb7 {[%clk 0:02:35.3]} 18.
Rg4 {[%clk 0:02:04.6]} 18... Nf6 {[%clk 0:02:19.4]} 19. Nxf7 {[%clk 0:01:54.9]}
19... Qb4 {[%clk 0:02:02.5]} 20. Nxh6+ {[%clk 0:01:52.1]} 20... Kf8 {[%clk
0:01:57.8]} 21. Qg6 {[%clk 0:01:46.2]} 21... Qxe1+ {[%clk 0:01:42.9]} 22. Bf1
{[%clk 0:01:46.1]} 22... Ke7 {[%clk 0:01:08.7]} 23. Qxg7+ {[%clk 0:01:45.2]}
23... Kd8 {[%clk 0:01:06.8]} 24. Qxb7 {[%clk 0:01:32.3]} 24... Qxf2+ {[%clk
0:00:14.8]} 25. Kxf2 {[%clk 0:01:33.2]} 25... Nxg4+ {[%clk 0:00:14.7]} 26. Nxg4
{[%clk 0:01:32.8]} 26... Rc8 {[%clk 0:00:13.3]} 27. Ne5 {[%clk 0:01:28.3]} 27...
Rc7 {[%clk 0:00:12.4]} 28. Qb8+ {[%clk 0:01:28.5]} 28... Rc8 {[%clk 0:00:10.3]}
29. Qd6# {[%clk 0:01:28.8]} 1-0